[Event "76th GEO-ch Women 2019"]
[Site "Tbilisi"]
[Date "2019.03.24"]
[Round "6.2"]
[White "Arabidze, Meri"]
[Black "Esadze, Tamari"]
[Result "1-0"]
[ECO "A14"]
[WhiteElo "2392"]
[BlackElo "2078"]
[Annotator "NA"]
[PlyCount "119"]
[EventDate "2019.03.19"]
[EventType "swiss"]
[EventCountry "GEO"]
[SourceTitle "playchess.com"]
[Source "ChessBase"]
[SourceQuality "1"]
[TimeControl "40/5400+30:1800+30"]

1. Nf3 {[%emt 0:12:08]} Nf6 {[%emt 0:00:00]} 2. c4 {[%emt 0:00:04]} e6 {[%emt 0:00:00]} 3. g3 {[%emt 0:00:07]} d5 {[%emt 0:00:57]} 4. Bg2 {[%emt 0:00:14]} Be7 {[%emt 0:00:12]} 5. O-O {[%emt 0:00:48]} O-O {[%emt 0:00:07]} 6. b3 {[%emt 0:01:02]} c5 {[%emt 0:02:29]} 7. Bb2 {[%emt 0:00:42]} Nc6 {[%emt 0:01:50]} 8. e3 {[%emt 0:01:36]} b6 {[%emt 0:03:13]} 9. Nc3 {[%emt 0:00:23]} Bb7 {[%emt 0:01:22]} 10. cxd5 {[%emt 0:00:12]} Nxd5 {[%emt 0:03:06]} 11. Nxd5 {[%emt 0:00:14]} exd5 {[%emt 0:01:13]} 12. d4 {[%emt 0:04:41]} Bf6 {[%emt 0:09:32]} 13. Qd2 {[%emt 0:05:04] A14: English Opening: 1...e6 with b3 by White} Qe7 {[%emt 0:11:11]} 14. Rac1 {[%emt 0:04:37]} cxd4 {[%emt 0:15:48]} (14... Rac8 15. Bh3 Rcd8 16. Ba3 Nb4 17. Bxb4 cxb4 18. Rc2 Bc8 19. Bxc8 Rxc8 20. Rfc1 Rxc2 21. Qxc2 g6 22. Qc7 Re8 23. Qxe7 Rxe7 {1-0 (37) Mikhalevski,V (2581)-Arruebarrena,R (2267) Edmonton 2018}) 15. Nxd4 {[%emt 0:00:33]} Bxd4 {[%emt 0:01:53]} 16. Bxd4 {[%emt 0:00:57]} Rfd8 {[%emt 0:06:07]} 17. Rfd1 {[%emt 0:02:13]} Nxd4 {[%emt 0:06:26]} 18. Qxd4 {[%emt 0:00:08]} h6 {[%emt 0:01:30]} 19. h4 $146 {[%emt 0:03:05]} ({Predecessor:} 19. Rc2 Rab8 20. Rcd2 Qa3 {½-½ (31) Rumpl,E (2334)-Vyskocil,N (2364) Austria 2016}) 19... Kh7 {[%emt 0:10:11]} 20. Qf4 {[%emt 0:04:56]} Kg8 {[%emt 0:04:53]} 21. Rc7 {[%emt 0:05:14]} Rd7 {[%emt 0:00:05]} 22. Rdc1 {[%emt 0:00:38]} Rad8 {[%emt 0:09:30]} 23. Bh3 {[%emt 0:13:57]} g5 {[%emt 0:00:05]} 24. hxg5 {[%emt 0:00:58]} hxg5 {[%emt 0:00:05]} 25. Rxd7 $16 {[%emt 0:02:17]} Rxd7 {[%emt 0:00:04]} 26. Qb8+ {[%emt 0:00:56]} Rd8 {[%emt 0:06:12]} 27. Qc7 {[%emt 0:00:30]} Qxc7 {[%emt 0:00:24]} 28. Rxc7 {[%emt 0:00:02]} Rb8 {[%emt 0:00:24]} 29. Bg4 {[%emt 0:02:33]} a5 {[%emt 0:02:40]} 30. Bh5 {[%emt 0:02:51]} f5 {[%emt 0:00:03]} 31. Bf7+ {[%emt 0:02:44]} Kh8 {[%emt 0:01:42]} 32. Rd7 {[%emt 0:05:19]} Bc6 {[%emt 0:01:06]} 33. Rd6 {[%emt 0:00:36]} Rc8 {[%emt 0:00:30]} 34. Be6 {[%emt 0:05:33]} Rc7 {[%emt 0:00:07]} 35. Bxf5 {[%emt 0:00:15]} Bb7 {[%emt 0:01:27]} 36. Rd8+ {[%emt 0:08:54]} Kg7 {[%emt 0:00:03]} 37. Rd7+ {[%emt 0:00:16]} Rxd7 {[%emt 0:00:04]} 38. Bxd7 {[%emt 0:00:04]} Kf6 {[%emt 0:00:24]} 39. f4 {[%emt 0:01:03]} gxf4 {[%emt 0:01:05]} 40. exf4 {[%emt 0:00:00]} d4 {[%emt 0:00:00]} 41. Kf2 {[%emt 0:00:51]} Be4 {[%emt 0:01:56]} 42. Ke2 {[%emt 0:02:17]} Kg6 {[%emt 0:04:37]} 43. g4 {[%emt 0:01:17]} Kf6 {[%emt 0:00:23]} 44. Bb5 {[%emt 0:01:00]} Ke6 {[%emt 0:01:09]} 45. a3 {[%emt 0:01:51]} Kf6 {[%emt 0:00:29]} 46. b4 {[%emt 0:01:47]} axb4 {[%emt 0:00:36]} 47. axb4 {[%emt 0:00:01]} Ke6 {[%emt 0:00:14]} 48. Bd3 {[%emt 0:00:29]} Bc6 {[%emt 0:01:59]} 49. Kf2 {[%emt 0:01:36]} Kf6 {[%emt 0:01:13]} 50. g5+ {[%emt 0:00:36]} Ke6 {[%emt 0:00:46]} 51. Kg3 {[%emt 0:00:28]} Ba4 {[%emt 0:00:40]} 52. f5+ {[%emt 0:02:14]} Ke5 {[%emt 0:00:16]} 53. f6 {[%emt 0:00:16]} Bb3 {[%emt 0:03:07]} 54. Kh4 {[%emt 0:01:04]} Ke6 {[%emt 0:03:13]} 55. Kh5 {[%emt 0:01:11]} Kf7 {[%emt 0:00:50]} 56. Kg4 {[%emt 0:00:39]} Ke6 {[%emt 0:00:29]} 57. Kf4 {[%emt 0:00:10]} Bd5 {[%emt 0:00:07]} 58. Bf5+ {[%emt 0:00:14]} Kd6 {[%emt 0:00:20]} 59. g6 {[%emt 0:00:52]} b5 {[%emt 0:00:12]} 60. f7 {[%emt 0:02:01]} 1-0

[Event "76th GEO-ch Women 2019"]
[Site "Tbilisi"]
[Date "2019.03.24"]
[Round "6.4"]
[White "Khukhashvili, Sopiko"]
[Black "Khurtsilava, Inga"]
[Result "1-0"]
[ECO "B30"]
[WhiteElo "2342"]
[BlackElo "2234"]
[Annotator "NA"]
[PlyCount "87"]
[EventDate "2019.03.19"]
[EventType "swiss"]
[EventCountry "GEO"]
[SourceTitle "playchess.com"]
[Source "ChessBase"]
[SourceQuality "1"]
[TimeControl "40/5400+30:1800+30"]

1. e4 {[%emt 0:00:00]} c5 {[%emt 0:00:00]} 2. Nf3 {[%emt 0:00:00]} Nc6 {[%emt 0:00:00]} 3. c3 {[%emt 0:00:00]} d5 {[%emt 0:00:01]} 4. exd5 {[%emt 0:00:00]} Qxd5 {[%emt 0:00:12]} 5. d4 {[%emt 0:00:00]} e6 {[%emt 0:01:47]} 6. Na3 {[%emt 0:00:36]} a6 {[%emt 0:02:09]} 7. Nc4 {[%emt 0:02:31]} Qd8 {[%emt 0:04:23]} 8. Be3 {[%emt 0:00:37] B22: Sicilian: 2 c3} b5 {[%emt 0:05:54]} 9. Nce5 {[%emt 0:00:05]} ({Worse is} 9. dxc5 Qxd1+ 10. Rxd1 bxc4 $17) 9... Nxe5 {[%emt 0:02:16]} 10. Nxe5 {[%emt 0:00:10]} Qc7 {[%emt 0:01:41]} 11. a4 {[%emt 0:04:38]} b4 {[%emt 0:03:15]} (11... cxd4 12. cxd4 Bb4+ 13. Bd2 Qa5 14. Bxb4 Qxb4+ 15. Qd2 Qxd2+ 16. Kxd2 bxa4 17. Rxa4 Bb7 18. Rb4 Bd5 19. f3 {½-½ (19) Srbis,J (2421)-Fedorchuk,S (2640) Mali Losinj 2017}) 12. cxb4 {[%emt 0:07:26]} cxd4 {[%emt 0:11:21]} 13. Qxd4 {[%emt 0:00:03]} Bxb4+ $146 {[%emt 0:00:31]} ({Predecessor:} 13... Bd6 14. Rc1 Bxe5 15. Rxc7 Bxd4 16. Bxd4 {1-0 (25) Berg,K (2375)-Forintos,G (2395) Tallinn 1986}) 14. Qxb4 {[%emt 0:00:22]} Qxe5 {[%emt 0:00:07]} 15. Be2 {[%emt 0:00:37]} Ne7 {[%emt 0:02:37]} 16. Bf4 {[%emt 0:15:41]} Nc6 {[%emt 0:09:23]} 17. Qb6 {[%emt 0:06:00]} Qe4 {[%emt 0:06:50]} 18. Rd1 {[%emt 0:11:53]} O-O {[%emt 0:02:58]} 19. Bd6 {[%emt 0:02:20]} Qxg2 {[%emt 0:28:02]} 20. Rf1 {[%emt 0:00:44]} Re8 $1 {[%emt 0:01:17] [#]} 21. f3 $1 {[%emt 0:00:43]} Bd7 {[%emt 0:00:29] [#]} 22. Bc7 {[%emt 0:01:38]} (22. Bg3 $1 $16 Nb8 23. b3) 22... e5 $1 {[%emt 0:02:24]} 23. Rxd7 {[%emt 0:08:14]} Nd4 {[%emt 0:00:04]} 24. Rf2 $11 {[%emt 0:03:29]} ({Reject} 24. Bxa6 Qxh2 25. b3 Qc2 $17) 24... Qg1+ {[%emt 0:00:52]} 25. Bf1 {[%emt 0:00:04]} Qg5 {[%emt 0:06:05]} 26. Be2 {[%emt 0:06:21]} Qg1+ {[%emt 0:00:51]} 27. Rf1 {[%emt 0:04:54]} Qg2 {[%emt 0:00:13]} 28. Bd1 {[%emt 0:02:50]} e4 {[%emt 0:02:50]} 29. Qxd4 {[%emt 0:01:05]} exf3+ {[%emt 0:00:45]} 30. Be5 {[%emt 0:00:06]} Qxh2 {[%emt 0:01:20]} 31. Rd5 {[%emt 0:00:15]} f6 {[%emt 0:01:13]} 32. Rxf3 {[%emt 0:07:34]} Rac8 {[%emt 0:00:55]} 33. Qe4 {[%emt 0:03:22]} fxe5 {[%emt 0:01:04]} 34. Rd7 {[%emt 0:06:34]} Kh8 {[%emt 0:02:15]} 35. Qg4 {[%emt 0:00:39]} Qh1+ {[%emt 0:00:46]} 36. Ke2 {[%emt 0:01:23]} Qh2+ {[%emt 0:00:14]} 37. Rf2 {[%emt 0:00:10]} Qh6 {[%emt 0:00:10]} 38. Qf5 {[%emt 0:02:04]} e4 {[%emt 0:00:34]} 39. Rg2 {[%emt 0:00:53]} Rg8 {[%emt 0:00:54]} 40. Rdxg7 {[%emt 0:00:00]} Qxg7 {[%emt 0:00:00]} 41. Rxg7 {[%emt 0:00:53]} Kxg7 {[%emt 0:00:27]} 42. Bb3 {[%emt 0:01:13]} Rgf8 {[%emt 0:03:36]} 43. Qg5+ {[%emt 0:00:13]} Kh8 {[%emt 0:01:55]} 44. Qe5+ {[%emt 0:00:03]} 1-0

[Event "76th GEO-ch Women 2019"]
[Site "Tbilisi"]
[Date "2019.03.24"]
[Round "6.6"]
[White "Gvetadze, Sofio"]
[Black "Purtseladze, Maka"]
[Result "1/2-1/2"]
[ECO "C02"]
[WhiteElo "2321"]
[BlackElo "2282"]
[Annotator "NA"]
[PlyCount "101"]
[EventDate "2019.03.19"]
[EventType "swiss"]
[EventCountry "GEO"]
[SourceTitle "playchess.com"]
[Source "ChessBase"]
[SourceQuality "1"]
[TimeControl "40/5400+30:1800+30"]

1. e4 {[%emt 0:00:00]} e6 {[%emt 0:00:00]} 2. d4 {[%emt 0:00:00]} d5 {[%emt 0:00:00]} 3. e5 {[%emt 0:00:00]} Bd7 {[%emt 0:00:00]} 4. Nf3 {[%emt 0:02:56]} a6 {[%emt 0:00:02]} 5. Bd3 {[%emt 0:00:56]} Bb5 {[%emt 0:00:32] C02: French: Advance Variation} 6. O-O {[%emt 0:00:40]} (6. Nc3 Bxd3 7. cxd3 Ne7 8. h4 h5 9. Bg5 Qd7 10. O-O Nbc6 11. Rc1 Nf5 12. Ne2 Be7 13. Bxe7 Ncxe7 {0-1 (39) Berbatov,K (2481)-Drasko,M (2527) Albena 2010}) 6... Bxd3 {[%emt 0:11:36]} 7. Qxd3 {[%emt 0:00:11]} c5 {[%emt 0:08:06]} 8. dxc5 {[%emt 0:04:32]} Bxc5 {[%emt 0:01:06]} 9. c4 {[%emt 0:00:27]} Ne7 {[%emt 0:02:30]} 10. Nc3 {[%emt 0:00:31]} Bb4 $146 {[%emt 0:04:23]} ({Predecessor:} 10... Ng6 11. cxd5 O-O 12. Rd1 exd5 13. Nxd5 Nc6 14. Be3 Bxe3 15. Qxe3 {0-1 (28) Kehayov,Y (1300)-Brulland,E (1470) FICGS email 2010}) 11. Rd1 {[%emt 0:08:37]} Bxc3 {[%emt 0:00:46]} 12. bxc3 {[%emt 0:00:21]} Nbc6 {[%emt 0:03:50]} 13. Ba3 {[%emt 0:00:51]} dxc4 {[%emt 0:06:09]} 14. Qxc4 {[%emt 0:00:41]} Qa5 {[%emt 0:00:08]} 15. Bd6 {[%emt 0:21:06]} O-O {[%emt 0:05:38]} 16. Rdb1 {[%emt 0:00:53]} Rfc8 {[%emt 0:15:25]} 17. Qd3 {[%emt 0:01:06]} Ng6 {[%emt 0:05:37]} 18. Re1 {[%emt 0:15:07]} b5 {[%emt 0:10:54]} 19. Ng5 $11 {[%emt 0:03:44]} Qd8 {[%emt 0:14:03]} 20. h4 {[%emt 0:05:31]} Ra7 {[%emt 0:00:46]} 21. g3 {[%emt 0:08:57]} Rd7 {[%emt 0:03:07]} 22. Qf3 {[%emt 0:00:36]} h6 {[%emt 0:00:40]} 23. Nh3 {[%emt 0:00:54]} Na5 {[%emt 0:00:34]} 24. a4 {[%emt 0:05:03]} Nc4 {[%emt 0:00:48]} 25. h5 {[%emt 0:00:22]} Ne7 {[%emt 0:00:28]} 26. axb5 {[%emt 0:00:09]} axb5 {[%emt 0:00:06]} 27. Bb4 {[%emt 0:04:41]} Nc6 {[%emt 0:00:41]} 28. Bd6 {[%emt 0:02:41]} Nxd6 {[%emt 0:00:14]} 29. exd6 {[%emt 0:00:02]} Rxd6 {[%emt 0:00:04]} 30. Reb1 {[%emt 0:00:16]} Rd5 {[%emt 0:02:44]} 31. Nf4 {[%emt 0:00:04]} Rc5 {[%emt 0:00:06]} 32. Qe3 {[%emt 0:01:06]} Qg5 {[%emt 0:00:45]} 33. Rd1 {[%emt 0:00:47]} Qe5 {[%emt 0:01:28]} 34. Qd3 {[%emt 0:01:28]} Qf6 {[%emt 0:02:46]} 35. Ra3 {[%emt 0:04:27]} Ne5 {[%emt 0:00:20]} 36. Qe2 {[%emt 0:00:12]} Qe7 {[%emt 0:00:58]} 37. Ra6 {[%emt 0:00:22]} Nc4 {[%emt 0:00:30]} 38. Rda1 {[%emt 0:00:40]} R5c7 {[%emt 0:00:28]} 39. Ra8 {[%emt 0:00:39]} Qc5 {[%emt 0:00:18]} 40. R1a6 {[%emt 0:00:00]} Kh8 {[%emt 0:00:00]} 41. Qe4 {[%emt 0:06:40]} Rxa8 {[%emt 0:17:29]} 42. Qxa8+ {[%emt 0:01:33]} Rc8 {[%emt 0:02:21]} 43. Qb7 {[%emt 0:00:02]} Ne5 {[%emt 0:02:21]} 44. Ra7 {[%emt 0:03:08]} Qc6 {[%emt 0:02:05]} 45. Ng6+ {[%emt 0:03:02]} Nxg6 {[%emt 0:00:07]} 46. Qxf7 {[%emt 0:03:16]} Ne7 {[%emt 0:03:05]} 47. Rxe7 {[%emt 0:00:11]} Qxc3 {[%emt 0:00:09]} 48. Re8+ {[%emt 0:00:18]} Rxe8 {[%emt 0:00:04]} 49. Qxe8+ {[%emt 0:00:03]} Kh7 {[%emt 0:00:03]} 50. Qg6+ {[%emt 0:00:04]} Kh8 {[%emt 0:00:05]} 51. Qe8+ {[%emt 0:00:03]} 1/2-1/2

[Event "76th GEO-ch Women 2019"]
[Site "Tbilisi"]
[Date "2019.03.26"]
[Round "7.1"]
[White "Purtseladze, Maka"]
[Black "Melia, Salome"]
[Result "0-1"]
[ECO "A45"]
[WhiteElo "2282"]
[BlackElo "2385"]
[Annotator "NA"]
[PlyCount "92"]
[EventDate "2019.03.19"]
[EventType "swiss"]
[EventCountry "GEO"]
[SourceTitle "playchess.com"]
[Source "ChessBase"]
[SourceQuality "1"]
[TimeControl "40/5400+30:1800+30"]

1. d4 {[%emt 0:02:32]} Nf6 {[%emt 0:00:00]} 2. Bg5 {[%emt 0:00:18]} c5 {[%emt 0:00:27]} 3. Bxf6 {[%emt 0:00:17]} gxf6 {[%emt 0:00:26]} 4. d5 {[%emt 0:00:28]} f5 {[%emt 0:02:04]} 5. e3 {[%emt 0:01:09] A45: Trompowsky Attack} (5. c4 d6 6. Nc3 Nd7 7. e3 Nf6 8. Qc2 Bg7 9. Bd3 e6 10. Nge2 Bd7 11. O-O Qc7 12. a3 Ng4 {0-1 (35) Kryakvin,D (2588)-Puranik,A (2536) chess.com INT 2019}) 5... Bg7 {[%emt 0:04:16]} 6. c3 {[%emt 0:00:57]} d6 {[%emt 0:00:51]} 7. Nd2 {[%emt 0:20:27]} Nd7 {[%emt 0:02:04]} 8. Nh3 {[%emt 0:01:51]} Nf6 {[%emt 0:01:54]} 9. Nf4 {[%emt 0:02:13]} Bd7 {[%emt 0:16:00]} 10. Nh5 {[%emt 0:05:55]} Rg8 {[%emt 0:14:49]} 11. Nxf6+ {[%emt 0:15:49]} Bxf6 {[%emt 0:00:03]} 12. a4 {[%emt 0:00:06]} Kf8 $146 {[%emt 0:06:14]} 13. g3 {[%emt 0:00:28]} a6 {[%emt 0:07:38]} 14. a5 {[%emt 0:00:36]} b5 {[%emt 0:00:08]} 15. axb6 $1 {[%emt 0:01:14]} Qxb6 {[%emt 0:00:03]} 16. Qb3 {[%emt 0:11:07]} ({White should try} 16. Ra2 $14) 16... Qxb3 {[%emt 0:06:37]} 17. Nxb3 {[%emt 0:00:04]} Rb8 {[%emt 0:01:08]} 18. Bc4 {[%emt 0:00:15]} e6 {[%emt 0:02:48]} (18... Rg4 $5 19. f4 $8 e6 $11) 19. O-O-O {[%emt 0:09:12]} Ba4 {[%emt 0:06:45]} (19... Ke7 $5 {[%cal Rb8b6]}) 20. Na5 {[%emt 0:07:50]} (20. Kc2 $1 $14) 20... Bxd1 {[%emt 0:00:13]} 21. Rxd1 {[%emt 0:00:09]} e5 $1 {[%emt 0:00:58]} 22. Nc6 {[%emt 0:01:03]} Rb6 {[%emt 0:04:32]} 23. Kc2 {[%emt 0:12:19] [#]} h5 $17 {[%emt 0:06:04]} 24. Bd3 {[%emt 0:02:25]} f4 {[%emt 0:02:59]} 25. Be2 {[%emt 0:01:53]} fxe3 {[%emt 0:05:51]} 26. fxe3 {[%emt 0:00:04]} h4 {[%emt 0:00:06]} 27. g4 {[%emt 0:00:34]} Bg5 {[%emt 0:00:35]} 28. h3 {[%emt 0:00:11]} Bxe3 {[%emt 0:01:37]} 29. Bd3 {[%emt 0:01:58]} Bg5 {[%emt 0:02:12]} 30. Ra1 {[%emt 0:00:40]} Kg7 {[%emt 0:01:00]} 31. b4 {[%emt 0:00:28]} cxb4 {[%emt 0:00:53]} 32. cxb4 {[%emt 0:00:05]} Ra8 {[%emt 0:02:24]} 33. b5 {[%emt 0:00:20]} a5 {[%emt 0:00:46]} 34. Kb3 {[%emt 0:00:55]} e4 {[%emt 0:01:30]} 35. Bc4 {[%emt 0:00:25]} Bd2 {[%emt 0:00:24]} 36. Nd4 {[%emt 0:01:09]} Rc8 {[%emt 0:01:03]} 37. Nc6 {[%emt 0:00:18]} e3 {[%emt 0:00:21]} 38. Ra4 {[%emt 0:00:32]} Re8 {[%emt 0:00:36]} 39. Be2 {[%emt 0:00:05]} Rb7 {[%emt 0:00:30]} 40. Nxa5 {[%emt 0:00:00]} Bxa5 {[%emt 0:00:00]} 41. Rxa5 {[%emt 0:01:09]} Rc8 {[%emt 0:13:38]} 42. Ra3 {[%emt 0:07:26]} Rc5 {[%emt 0:04:43]} 43. Kb4 {[%emt 0:00:06]} Re7 {[%emt 0:02:11]} 44. Ra2 {[%emt 0:07:22]} Rxd5 {[%emt 0:00:20]} 45. Bf3 {[%emt 0:00:16]} Rd2 {[%emt 0:02:43]} 46. Ra1 {[%emt 0:05:38]} Rf2 {[%emt 0:01:39]} 0-1

[Event "76th GEO-ch Women 2019"]
[Site "Tbilisi"]
[Date "2019.03.26"]
[Round "7.2"]
[White "Khomeriki, Nino"]
[Black "Gvetadze, Sofio"]
[Result "1/2-1/2"]
[ECO "D38"]
[WhiteElo "2347"]
[BlackElo "2321"]
[Annotator "NA"]
[PlyCount "122"]
[EventDate "2019.03.19"]
[EventType "swiss"]
[EventCountry "GEO"]
[SourceTitle "playchess.com"]
[Source "ChessBase"]
[SourceQuality "1"]
[TimeControl "40/5400+30:1800+30"]

1. d4 {[%emt 0:00:00]} Nf6 {[%emt 0:00:00]} 2. Nf3 {[%emt 0:00:00]} e6 {[%emt 0:00:00]} 3. c4 {[%emt 0:00:00]} d5 {[%emt 0:00:53]} 4. Nc3 {[%emt 0:00:00]} Bb4 {[%emt 0:00:25]} 5. Bg5 {[%emt 0:00:23]} h6 {[%emt 0:00:23]} 6. Bxf6 {[%emt 0:00:07]} Qxf6 {[%emt 0:00:06]} 7. Qa4+ {[%emt 0:00:06]} Nc6 {[%emt 0:00:08]} 8. e3 {[%emt 0:00:07]} O-O {[%emt 0:00:22] D38: Queen's Gambit Declined: Ragozin Defence (4 Nf3 Bb4)} 9. Be2 {[%emt 0:00:44]} a6 {[%emt 0:03:47]} 10. O-O {[%emt 0:03:29]} dxc4 {[%emt 0:00:25]} 11. Bxc4 {[%emt 0:01:58]} Bd6 {[%emt 0:01:52]} 12. Be2 $146 {[%emt 0:10:55]} ({Predecessor:} 12. Ne4 Qe7 13. Nxd6 cxd6 14. d5 Na7 15. Qb4 e5 16. Rac1 {1-0 (63) Carlsen,M (2881)-Movsesian,S (2672) Dubai 2014}) 12... Bd7 {[%emt 0:06:47]} 13. Rfd1 {[%emt 0:11:40]} Rfd8 {[%emt 0:09:13]} 14. Qb3 {[%emt 0:05:49]} Rab8 {[%emt 0:04:12]} 15. Rac1 {[%emt 0:01:37]} Qe7 {[%emt 0:05:38]} 16. Ne4 {[%emt 0:01:48]} Qe8 {[%emt 0:11:52]} 17. Nc5 {[%emt 0:10:54]} e5 {[%emt 0:04:22]} 18. Nxd7 {[%emt 0:13:22]} ({Much weaker is} 18. Nxb7 Na5 $15) 18... Rxd7 {[%emt 0:00:21]} 19. d5 {[%emt 0:00:18]} Ne7 {[%emt 0:01:00]} 20. e4 {[%emt 0:01:26]} Ng6 {[%emt 0:00:25]} 21. Nd2 {[%emt 0:01:35]} Qd8 {[%emt 0:03:08]} 22. Bg4 {[%emt 0:02:14]} Re7 {[%emt 0:00:17]} 23. g3 {[%emt 0:02:49]} Re8 {[%emt 0:00:26]} 24. h4 {[%emt 0:03:11]} Nf8 {[%emt 0:02:26]} 25. Qd3 {[%emt 0:02:16]} Nh7 {[%emt 0:03:55]} 26. a3 {[%emt 0:02:57]} Nf6 {[%emt 0:01:18]} 27. Bh3 {[%emt 0:01:14]} g6 {[%emt 0:00:57]} 28. Qe3 {[%emt 0:01:50]} Kg7 {[%emt 0:01:13]} 29. Nc4 {[%emt 0:00:27]} Re7 {[%emt 0:11:44]} 30. Rc2 {[%emt 0:04:22]} Qe8 {[%emt 0:01:37]} 31. Nxd6 {[%emt 0:03:05]} cxd6 {[%emt 0:00:06]} 32. Rdc1 {[%emt 0:00:10]} Qb5 {[%emt 0:03:32]} 33. Bf1 {[%emt 0:05:21]} Qd7 {[%emt 0:00:40]} 34. Rc4 {[%emt 0:00:26]} Qg4 $16 {[%emt 0:01:11]} 35. Be2 {[%emt 0:01:06]} Qh3 {[%emt 0:00:50]} 36. Bf1 {[%emt 0:00:06]} Qg4 {[%emt 0:00:08]} 37. Kg2 {[%emt 0:02:23]} Qd7 {[%emt 0:02:53]} 38. Qb6 {[%emt 0:01:42]} Qd8 {[%emt 0:01:15]} 39. Qe3 {[%emt 0:04:46]} Ng4 {[%emt 0:02:07]} 40. Qf3 {[%emt 0:00:00]} h5 {[%emt 0:00:00]} 41. Qb3 {[%emt 0:12:22]} f5 {[%emt 0:12:46]} 42. f3 {[%emt 0:00:13]} Nh6 {[%emt 0:00:43]} 43. Bd3 {[%emt 0:01:19]} f4 {[%emt 0:01:05]} 44. Qc3 {[%emt 0:04:29]} Rf7 {[%emt 0:02:23]} 45. Rc7 {[%emt 0:04:44]} fxg3 {[%emt 0:00:17]} 46. Rxf7+ {[%emt 0:00:22]} Nxf7 {[%emt 0:00:06]} 47. Kxg3 {[%emt 0:00:21]} Qb6 {[%emt 0:05:38]} 48. Bf1 {[%emt 0:00:32]} g5 {[%emt 0:06:30]} 49. Qd2 {[%emt 0:01:43]} gxh4+ {[%emt 0:00:27]} 50. Kh2 {[%emt 0:00:08]} Kf6 {[%emt 0:00:49]} 51. f4 {[%emt 0:01:01]} Rg8 {[%emt 0:01:06]} 52. Bh3 {[%emt 0:00:24]} exf4 {[%emt 0:06:18]} 53. Rf1 {[%emt 0:00:05]} Ke7 {[%emt 0:00:17]} 54. Qxf4 {[%emt 0:00:07]} Qxb2+ {[%emt 0:00:13]} 55. Kh1 {[%emt 0:00:02]} Qg7 {[%emt 0:05:00]} 56. Qf5 {[%emt 0:00:08]} Qg6 {[%emt 0:01:46]} 57. Qd7+ {[%emt 0:04:46]} Kf8 {[%emt 0:00:01]} 58. Qc8+ {[%emt 0:05:18]} Kg7 {[%emt 0:00:40]} 59. Qc3+ {[%emt 0:00:05]} Kf8 {[%emt 0:00:06]} 60. Qc8+ {[%emt 0:00:10]} Kg7 {[%emt 0:00:05]} 61. Qc3+ {[%emt 0:00:03]} Kh7 1/2-1/2

[Event "76th GEO-ch Women 2019"]
[Site "Tbilisi"]
[Date "2019.03.26"]
[Round "7.3"]
[White "Khurtsilava, Inga"]
[Black "Tsereteli, Tamar"]
[Result "0-1"]
[ECO "D04"]
[WhiteElo "2234"]
[BlackElo "2315"]
[Annotator "NA"]
[PlyCount "102"]
[EventDate "2019.03.19"]
[EventType "swiss"]
[EventCountry "GEO"]
[SourceTitle "playchess.com"]
[Source "ChessBase"]
[SourceQuality "1"]
[TimeControl "40/5400+30:1800+30"]

1. d4 {[%emt 0:00:11]} Nf6 {[%emt 0:00:00]} 2. Nf3 {[%emt 0:00:06]} d5 {[%emt 0:00:00]} 3. e3 {[%emt 0:00:25]} c5 {[%emt 0:00:47]} 4. Nbd2 {[%emt 0:00:23]} Nc6 {[%emt 0:00:22]} 5. dxc5 {[%emt 0:01:16] D04: Colle System} Qa5 {[%emt 0:07:36]} (5... e6 6. a3 a5 7. b3 Bxc5 8. Bb2 O-O 9. Bb5 d4 10. Bxc6 dxe3 11. Ne4 exf2+ 12. Kf1 Qb6 13. Nxf6+ gxf6 14. Be4 Rd8 15. Qe2 {1-0 (15) Carlsen,M (2832)-So,W (2815) chess.com INT 2017}) 6. c3 {[%emt 0:02:55]} Qxc5 {[%emt 0:00:58]} 7. Bd3 {[%emt 0:00:05]} e5 {[%emt 0:03:32]} 8. e4 {[%emt 0:00:53]} Bg4 $146 {[%emt 0:03:14]} ({Predecessor:} 8... Be7 9. O-O Bg4 10. exd5 Qxd5 11. Bc4 Qd7 12. Qb3 O-O {0-1 (27) Donegan,A-Spielmann,R Vienna 1936}) 9. h3 {[%emt 0:04:43]} Bh5 {[%emt 0:03:14]} 10. Qe2 {[%emt 0:00:37]} O-O-O {[%emt 0:06:03]} 11. exd5 {[%emt 0:15:26]} Qxd5 {[%emt 0:01:13]} 12. Bf5+ {[%emt 0:02:58]} Kb8 {[%emt 0:00:23]} 13. Ne4 {[%emt 0:00:50]} Bg6 {[%emt 0:06:32]} 14. Bxg6 {[%emt 0:05:50]} hxg6 {[%emt 0:00:12]} 15. Nfg5 {[%emt 0:00:25]} Rh4 {[%emt 0:06:40]} 16. f3 {[%emt 0:03:11]} Ne8 {[%emt 0:15:04]} 17. Nf2 {[%emt 0:04:48]} Be7 {[%emt 0:05:10]} 18. O-O {[%emt 0:02:35]} f6 {[%emt 0:03:34]} 19. Rd1 {[%emt 0:01:14]} Qg8 {[%emt 0:00:41]} 20. Nge4 {[%emt 0:00:51]} f5 {[%emt 0:01:34]} 21. Rxd8+ {[%emt 0:01:09]} Bxd8 {[%emt 0:00:31]} 22. Ng3 {[%emt 0:02:44]} Nd6 {[%emt 0:03:31]} 23. Nf1 {[%emt 0:05:07]} g5 {[%emt 0:04:19]} 24. b3 {[%emt 0:01:16]} e4 {[%emt 0:02:46]} 25. Ba3 {[%emt 0:02:58]} Bc7 {[%emt 0:00:09]} 26. Rd1 {[%emt 0:07:01]} (26. Bxd6 $5 Bxd6 27. fxe4 $14) 26... exf3 {[%emt 0:01:13]} 27. Qxf3 {[%emt 0:08:42]} Qe6 {[%emt 0:07:42]} 28. Qd5 {[%emt 0:02:58]} Rh6 {[%emt 0:01:05]} 29. Ng3 {[%emt 0:01:27]} Ne7 {[%emt 0:01:30]} 30. Qd2 {[%emt 0:02:01]} Nec8 {[%emt 0:01:29]} 31. Re1 {[%emt 0:01:40]} ({Don't blunder} 31. Qxg5 $2 Rg6 $19) 31... Qf6 {[%emt 0:00:06]} 32. Bc1 $11 {[%emt 0:00:33]} Nf7 {[%emt 0:01:55]} 33. Qd3 {[%emt 0:01:29]} Ncd6 {[%emt 0:01:08]} 34. c4 {[%emt 0:02:51]} Bb6 {[%emt 0:01:14]} 35. Ba3 {[%emt 0:06:44]} Bd4 {[%emt 0:06:16]} 36. Rd1 {[%emt 0:04:41]} Rh4 {[%emt 0:00:32]} 37. c5 {[%emt 0:01:05]} Ne5 {[%emt 0:01:13]} 38. Qc2 {[%emt 0:01:51]} Ndf7 {[%emt 0:01:44]} 39. Bc1 {[%emt 0:00:45]} g6 {[%emt 0:01:31]} 40. Ne2 {[%emt 0:00:00]} Bxf2+ {[%emt 0:00:00]} 41. Kxf2 {[%emt 0:00:41]} f4 {[%emt 0:04:25]} 42. Ng1 {[%emt 0:06:42]} g4 {[%emt 0:07:24]} 43. Qe4 {[%emt 0:10:37]} g3+ {[%emt 0:00:44]} 44. Kf1 {[%emt 0:10:01]} f3 {[%emt 0:00:18]} 45. Qe3 {[%emt 0:01:11]} Re4 {[%emt 0:02:17]} 46. gxf3 {[%emt 0:05:51]} Rxe3 {[%emt 0:00:09]} 47. Bxe3 {[%emt 0:00:03]} Nxf3 {[%emt 0:00:38]} 48. Kg2 {[%emt 0:00:21]} Nh4+ {[%emt 0:00:46]} 49. Kxg3 {[%emt 0:00:07]} Nf5+ {[%emt 0:00:30]} 50. Kf2 {[%emt 0:00:09]} Qh4+ {[%emt 0:00:13]} 51. Ke2 {[%emt 0:00:08]} Qe4 {[%emt 0:00:11]} 0-1